bitfinex/quotes_BTCUSD_20250901
["timestamp","ask_amount","ask_price","bid_price","bid_amount"]
[1756741718129,0.36260526,108850.0,108840.0,0.0004]
[1756741718530,0.36360526,108850.0,108840.0,0.0004]
[1756741718851,0.20768526,108850.0,108840.0,0.18934597]
[1756741719024,0.36348526,108850.0,108840.0,0.18934597]
[1756741719212,0.34061909,108850.0,108840.0,0.18934597]
[1756741719412,0.34053909,108850.0,108840.0,0.18934597]
[1756741719621,0.18373909,108850.0,108840.0,0.18934597]
[1756741719830,0.33953909,108850.0,108840.0,0.18934597]
[1756741720034,0.34053909,108850.0,108840.0,0.18934597]
[1756741720458,0.62264207,108860.0,108840.0,0.18934597]
[1756741720694,0.33953909,108850.0,108840.0,0.18617597]
[1756741720907,0.34053909,108850.0,108840.0,0.18934597]
[1756741721317,0.33953909,108850.0,108840.0,0.18934597]
[1756741721766,0.18373909,108850.0,108840.0,0.18934597]
[1756741721976,0.1558,108850.0,108840.0,0.18934597]
[1756741722177,0.1558,108850.0,108840.0,0.19034597]
[1756741723261,0.33953909,108850.0,108840.0,0.19034597]
[1756741723694,0.33953909,108850.0,108840.0,0.19134597]
[1756741724506,0.1558,108850.0,108840.0,0.19134597]
[1756741724714,0.33953909,108850.0,108840.0,0.19134597]
[1756741725121,0.1558,108850.0,108840.0,0.19134597]
[1756741725564,0.33953909,108850.0,108840.0,0.19134597]
[1756741725708,0.33961909,108850.0,108840.0,0.18615597]
[1756741726311,0.33961909,108850.0,108840.0,0.19134597]
[1756741726515,0.33961909,108850.0,108840.0,0.18615597]
[1756741726732,0.79826052,108850.0,108840.0,0.0014]
[1756741726956,0.70734453,108850.0,108840.0,0.0014]
[1756741727520,0.70634453,108850.0,108840.0,0.0014]
[1756741727724,0.70634453,108850.0,108840.0,0.0004]
[1756741727905,0.70734453,108850.0,108840.0,0.0004]
[1756741728106,0.70739453,108850.0,108840.0,0.0004]
[1756741728340,1.16138235,108850.0,108840.0,0.0004]
[1756741728547,1.16134763,108850.0,108840.0,0.0004]
[1756741728745,1.13531877,108850.0,108840.0,0.0004]
[1756741729201,1.63531877,108850.0,108840.0,0.0004]
[1756741729420,1.66293877,108850.0,108840.0,0.0004]
[1756741730236,1.66288877,108850.0,108840.0,0.0004]
[1756741730664,1.64086694,108850.0,108840.0,0.0004]
[1756741730887,1.30020508,108850.0,108840.0,0.0004]
[1756741731105,1.64086694,108850.0,108840.0,0.0004]
[1756741731318,1.3410044,108850.0,108840.0,0.0004]
[1756741731534,1.68166626,108850.0,108840.0,0.0004]
[1756741731750,1.77358225,108850.0,108840.0,0.0004]
[1756741732152,1.61778225,108850.0,108840.0,0.0004]
[1756741732408,1.77358225,108850.0,108840.0,0.0004]
[1756741735418,2.14896395,108850.0,108840.0,0.0004]
[1756741735631,2.14596395,108850.0,108840.0,0.0004]
[1756741735858,2.14496395,108850.0,108840.0,0.0004]
[1756741736060,2.14796395,108850.0,108840.0,0.0004]
[1756741736270,2.14996395,108850.0,108840.0,0.0004]
[1756741736491,2.04416395,108850.0,108840.0,0.0004]
[1756741736704,2.19796395,108850.0,108840.0,0.0004]
[1756741736913,7.21456763,108850.0,108840.0,0.0004]
[1756741737146,7.07978418,108850.0,108840.0,0.0004]
[1756741737362,7.23558418,108850.0,108840.0,0.0004]
[1756741737579,7.07978418,108850.0,108840.0,0.0004]
[1756741737794,7.06356694,108850.0,108840.0,0.0004]
[1756741738004,6.87390577,108850.0,108840.0,0.0004]
[1756741738484,7.21756763,108850.0,108840.0,0.0004]
[1756741738693,7.08774654,108850.0,108840.0,0.0004]
[1756741738914,7.24358654,108850.0,108840.0,0.0004]
[1756741739553,7.24558654,108850.0,108840.0,0.0004]
[1756741739807,7.08969654,108850.0,108840.0,0.0004]
[1756741740013,6.56426282,108850.0,108840.0,0.0004]
[1756741740230,6.90490892,108850.0,108840.0,0.0004]
[1756741740470,7.24557078,108850.0,108840.0,0.0004]
[1756741740688,6.90490892,108850.0,108840.0,0.0004]
[1756741741542,6.90970823,108850.0,108840.0,0.0004]
[1756741741994,6.75381823,108850.0,108840.0,0.0004]
[1756741742214,1.59231432,108850.0,108840.0,0.0004]
[1756741742434,1.69045557,108850.0,108840.0,0.00559]
[1756741742639,1.71639977,108850.0,108840.0,0.00559]
[1756741743058,1.71439977,108850.0,108840.0,0.00559]
[1756741743271,1.71139977,108850.0,108840.0,0.00559]
[1756741743488,1.71247977,108850.0,108840.0,0.00559]
[1756741743724,1.71239977,108850.0,108840.0,0.00559]
[1756741744146,1.3067339,108850.0,108840.0,0.00559]
[1756741744369,1.34479371,108850.0,108840.0,0.00559]
[1756741744551,1.70896848,108850.0,108840.0,0.00559]
[1756741745055,1.55304848,108850.0,108840.0,0.00559]
[1756741745290,1.70908848,108850.0,108840.0,0.00559]
[1756741746573,1.55304848,108850.0,108840.0,0.00559]
[1756741746778,1.70912848,108850.0,108840.0,0.00559]
[1756741747005,1.55304848,108850.0,108840.0,0.00559]
[1756741747188,1.34487371,108850.0,108840.0,0.00559]
[1756741747580,1.0285384,108850.0,108840.0,0.18934597]
[1756741747785,0.66079931,108850.0,108840.0,0.18934597]
[1756741748002,0.8445384,108850.0,108840.0,0.18934597]
[1756741748220,0.83973909,108850.0,108840.0,0.18934597]
[1756741749041,0.64250599,108850.0,108840.0,0.18934597]
[1756741749583,0.64250599,108850.0,108840.0,0.19034597]
[1756741750001,0.64661108,108850.0,108840.0,0.19034597]
[1756741750615,0.30687199,108850.0,108840.0,0.19134597]
[1756741750820,0.43533399,108850.0,108840.0,0.53200783]
[1756741751239,0.43533399,108850.0,108840.0,0.55294665]
[1756741751453,0.27925399,108850.0,108840.0,0.55294665]
[1756741751661,0.27925399,108850.0,108840.0,0.64486264]
[1756741753592,0.27925399,108850.0,108840.0,0.9855245]
[1756741754046,0.27925399,108850.0,108840.0,0.30420078]
[1756741754255,0.27925399,108850.0,108840.0,0.64486264]
[1756741754462,0.27925399,108850.0,108840.0,0.30420078]
[1756741754882,0.3027669,108850.0,108840.0,0.21228479]
[1756741756411,0.3027669,108850.0,108840.0,0.55294665]
[1756741756826,0.27925399,108850.0,108840.0,0.55294665]
[1756741761258,0.27925399,108850.0,108840.0,0.21228479]
[1756741761674,0.27925399,108850.0,108840.0,0.55294665]
[1756741762300,0.3027669,108850.0,108840.0,0.55294665]
[1756741763449,0.27925399,108850.0,108840.0,0.55294665]
[1756741763861,0.27925399,108850.0,108840.0,0.70926665]
[1756741764741,0.27925399,108850.0,108840.0,0.36860479]
[1756741765054,0.27925399,108850.0,108840.0,0.70926665]
[1756741765838,0.27925399,108850.0,108840.0,0.70910665]
[1756741767864,0.3027669,108850.0,108840.0,0.70910665]
[1756741768487,0.3027669,108850.0,108840.0,0.55294665]
[1756741768682,0.3027669,108850.0,108840.0,0.70906665]
[1756741769603,0.27925399,108850.0,108840.0,0.80098264]
[1756741770432,0.27925399,108850.0,108840.0,0.64486264]
[1756741770631,0.27925399,108850.0,108840.0,0.46028078]
[1756741770850,0.27925399,108850.0,108840.0,0.55294665]
[1756741771018,0.3055169,108850.0,108840.0,0.70914665]
[1756741771228,0.3055169,108850.0,108840.0,0.36848479]
[1756741771987,0.3055169,108850.0,108840.0,0.70914665]
[1756741772363,0.3055169,108850.0,108840.0,0.70910665]
[1756741772767,0.3055169,108850.0,108840.0,0.36844479]
[1756741773176,0.48925599,108850.0,108840.0,0.36844479]
[1756741773296,0.48933599,108850.0,108840.0,0.02333882]
[1756741773508,0.48933599,108850.0,108840.0,0.17949882]
[1756741773803,0.48933599,108850.0,108840.0,0.0024]
[1756741774005,0.82999785,108850.0,108840.0,0.0024]
[1756741776305,0.85761685,108850.0,108840.0,0.0024]
[1756741776517,0.94953284,108850.0,108840.0,0.0024]
[1756741776969,0.94958284,108850.0,108840.0,0.0024]
[1756741777183,0.85761685,108850.0,108840.0,0.0024]
[1756741777921,0.85766685,108850.0,108840.0,0.0024]
[1756741778864,0.94958284,108850.0,108840.0,0.0024]
[1756741779790,1.10590284,108850.0,108840.0,0.0024]
[1756741780018,0.76515098,108850.0,108840.0,0.0014]
[1756741780239,1.10581284,108850.0,108840.0,0.0014]
[1756741780674,1.10581284,108850.0,108840.0,0.0004]
[1756741781112,1.10586284,108850.0,108840.0,0.0004]
[1756741782005,1.53777883,108850.0,108840.0,0.0004]
[1756741784261,1.53764883,108850.0,108840.0,0.0004]
[1756741784698,1.44593284,108850.0,108840.0,0.0004]
[1756741785133,1.10527098,108850.0,108840.0,0.0004]
[1756741785361,1.44593284,108850.0,108840.0,0.0004]
[1756741786899,0.94887098,108850.0,108840.0,0.0004]
[1756741787129,1.44589284,108850.0,108840.0,0.0004]
[1756741788444,0.94887098,108850.0,108840.0,0.0004]
[1756741788651,1.44589284,108850.0,108840.0,0.0004]
[1756741792070,1.10523098,108850.0,108840.0,0.0035]
[1756741792277,1.44589284,108850.0,108840.0,0.0004]
[1756741794538,1.44589284,108850.0,108840.0,0.0035]
[1756741794765,1.44589284,108850.0,108840.0,0.0004]
[1756741795940,1.53785883,108850.0,108840.0,0.0004]
[1756741796102,1.53780883,108850.0,108840.0,0.0004]
[1756741796714,1.53785883,108850.0,108840.0,0.0004]
[1756741797084,1.87952069,108850.0,108840.0,0.0004]
[1756741797797,1.87852069,108850.0,108840.0,0.0004]
[1756741798217,1.88052069,108850.0,108840.0,0.0004]
[1756741799215,0.18375597,108840.0,108830.0,0.0004]
[1756741799454,1.55809282,108840.0,108830.0,0.0004]
[1756741799696,1.55817282,108840.0,108830.0,0.0004]
[1756741799927,1.56185582,108840.0,108830.0,0.0004]
[1756741800151,1.55228551,108840.0,108830.0,0.0004]
[1756741800357,1.55328551,108840.0,108830.0,0.0004]
[1756741800728,1.70228551,108840.0,108830.0,1e-08]
[1756741800932,1.7942015,108840.0,108830.0,1e-08]
[1756741801113,1.82417841,108840.0,108830.0,1e-08]
[1756741801323,1.82409841,108840.0,108830.0,1e-08]
[1756741801602,1.82509841,108840.0,108830.0,1e-08]
[1756741801820,1.66893841,108840.0,108830.0,1e-08]
[1756741802031,1.7961215,108840.0,108830.0,1e-08]
[1756741802675,1.89468804,108840.0,108830.0,1e-08]
[1756741802884,2.2353099,108840.0,108830.0,1e-08]
[1756741803087,1.89464804,108840.0,108830.0,1e-08]
[1756741803906,7.25231372,108840.0,108830.0,1e-08]
[1756741804109,6.75553186,108840.0,108830.0,1e-08]
[1756741804319,6.91161186,108840.0,108830.0,1e-08]
[1756741805588,6.88258495,108840.0,108830.0,1e-08]
[1756741805816,6.882572,108840.0,108830.0,1e-08]
[1756741806290,6.91160157,108840.0,108830.0,1e-08]
[1756741807698,7.25226343,108840.0,108830.0,1e-08]
[1756741808104,7.30226343,108840.0,108830.0,1e-08]
[1756741809584,7.32320225,108840.0,108830.0,1e-08]
[1756741809785,7.38676219,108840.0,108830.0,1e-08]
[1756741810229,1.40511346,108820.0,108810.0,1e-08]
[1756741810400,1.8522886,108820.0,108810.0,1e-08]
[1756741810601,1.87665759,108820.0,108810.0,1e-08]
[1756741810950,1.90429059,108820.0,108810.0,1e-08]
[1756741811721,1.90829059,108820.0,108810.0,1e-08]
[1756741813034,1.75225059,108820.0,108810.0,1e-08]
[1756741813235,1.90821059,108820.0,108810.0,1e-08]
[1756741813595,1.94938945,108820.0,108810.0,1e-08]
[1756741814238,1.94938945,108820.0,108810.0,0.00509001]
[1756741814239,1.79342945,108820.0,108810.0,0.00509001]
[1756741814445,1.40268759,108820.0,108810.0,0.00509001]
[1756741814643,1.52210443,108820.0,108810.0,0.00509001]
[1756741815082,1.52690374,108820.0,108810.0,0.00509001]
[1756741815497,1.52698374,108820.0,108810.0,0.00307001]
[1756741815705,1.8676456,108820.0,108810.0,0.00509001]
[1756741815909,1.8676456,108820.0,108810.0,1e-08]
[1756741816379,1.96356637,108820.0,108810.0,1e-08]
[1756741816801,1.98308571,108820.0,108810.0,1e-08]
[1756741817977,1.98313571,108820.0,108810.0,1e-08]
[1756741818157,1.98308571,108820.0,108810.0,1e-08]
[1756741818362,1.98313571,108820.0,108810.0,1e-08]
[1756741819082,7.05407453,108820.0,108810.0,1e-08]
[1756741819499,7.06042658,108820.0,108810.0,1e-08]
[1756741819700,7.08486463,108820.0,108810.0,1e-08]
[1756741820580,6.92886463,108820.0,108810.0,1e-08]
[1756741820765,7.08498463,108820.0,108810.0,1e-08]
[1756741821364,6.40845746,108820.0,108810.0,1e-08]
[1756741821563,7.08978118,108820.0,108810.0,1e-08]
[1756741822087,7.08982118,108820.0,108810.0,1e-08]
[1756741823305,7.06079427,108820.0,108810.0,1e-08]
[1756741824417,6.90463427,108820.0,108810.0,1e-08]
[1756741824655,7.06075427,108820.0,108810.0,1e-08]
[1756741824874,7.01548646,108820.0,108810.0,1e-08]
[1756741825101,7.03981545,108820.0,108810.0,0.00509001]
[1756741825352,7.03981545,108820.0,108810.0,0.00441001]
[1756741826207,0.57380663,108810.0,108800.0,1e-08]
[1756741826432,7.07390553,108810.0,108800.0,1e-08]
[1756741826658,2.04195452,108810.0,108800.0,0.00202001]
[1756741826878,1.68546746,108810.0,108800.0,0.00202001]
[1756741827089,1.8582393,108810.0,108800.0,0.00202001]
[1756741827307,1.5181993,108810.0,108800.0,0.00202001]
[1756741827517,1.8581993,108810.0,108800.0,0.00302001]
[1756741827769,2.19886116,108810.0,108800.0,0.00302001]
[1756741828218,2.19886116,108810.0,108800.0,0.00609001]
[1756741828435,2.20354805,108810.0,108800.0,0.00609001]
[1756741828650,2.20354805,108810.0,108800.0,0.00302001]
[1756741828878,2.20354805,108810.0,108800.0,0.00100001]
[1756741828879,2.25648805,108810.0,108800.0,0.00100001]
[1756741829131,2.27982409,108810.0,108800.0,0.00100001]
[1756741829798,2.28182409,108810.0,108800.0,0.00100001]
[1756741830020,7.30626214,108810.0,108800.0,0.00100001]
[1756741830467,7.30626214,108810.0,108800.0,1e-08]
[1756741830688,7.30726214,108810.0,108800.0,1e-08]
[1756741831108,7.30432214,108810.0,108800.0,1e-08]
[1756741831318,7.27988409,108810.0,108800.0,0.00202001]
[1756741831533,7.06955409,108810.0,108800.0,0.00509001]
[1756741831743,6.42718539,108810.0,108800.0,0.00509001]
[1756741831977,7.1309489,108810.0,108800.0,0.00609001]
[1756741832178,7.1330389,108810.0,108800.0,0.00100001]
[1756741832391,7.22923268,108810.0,108800.0,0.00609001]
[1756741832614,6.91666489,108810.0,108800.0,0.00609001]
[1756741832842,7.22286489,108810.0,108800.0,0.00609001]
[1756741833285,7.22495489,108810.0,108800.0,0.00609001]
[1756741833957,7.22495489,108810.0,108800.0,0.00302001]
[1756741834615,7.22342489,108810.0,108800.0,0.00609001]
[1756741834835,7.22544489,108810.0,108800.0,0.00609001]
[1756741835372,7.22544489,108810.0,108800.0,0.00302001]
[1756741835667,7.28480276,108810.0,108800.0,0.00100001]
[1756741836110,7.30924081,108810.0,108800.0,0.00100001]
[1756741836324,7.28079738,108810.0,108800.0,0.00100001]
[1756741837302,7.27442951,108810.0,108800.0,0.00100001]
[1756741837534,7.28081578,108810.0,108800.0,0.00100001]
[1756741839538,7.27782578,108810.0,108800.0,0.00100001]
[1756741839800,7.27774578,108810.0,108800.0,0.00304001]
[1756741840470,6.97712979,108810.0,108800.0,0.00624001]
[1756741840654,7.13376979,108810.0,108800.0,0.00624001]
[1756741840859,7.13377763,108810.0,108800.0,0.00624001]
[1756741841314,7.13579763,108810.0,108800.0,0.00100001]
[1756741841557,7.13579763,108810.0,108800.0,0.00304001]
[1756741841777,7.22771362,108810.0,108800.0,0.00100001]
[1756741842242,7.22771362,108810.0,108800.0,0.00304001]
[1756741842454,7.22569362,108810.0,108800.0,0.00624001]
[1756741842678,7.22771362,108810.0,108800.0,0.00624001]
[1756741843390,7.23070362,108810.0,108800.0,0.00100001]
[1756741843636,7.22771362,108810.0,108800.0,0.00100001]
[1756741843867,7.22134325,108810.0,108800.0,0.00304001]
[1756741844105,7.12740726,108810.0,108800.0,0.00624001]
[1756741844581,0.31944935,108810.0,108800.0,0.00624001]
[1756741844806,0.79728032,108810.0,108800.0,0.00624001]
[1756741845041,1.16208439,108810.0,108800.0,0.00624001]
[1756741845302,0.007684,108810.0,108800.0,0.19006353]
[1756741845531,0.164684,108810.0,108800.0,0.19006353]
[1756741845783,0.68546849,108810.0,108800.0,0.00624001]
[1756741846002,0.36830129,108810.0,108800.0,0.00624001]
[1756741846228,0.70896315,108810.0,108800.0,0.00724001]
[1756741846673,0.70696315,108810.0,108800.0,0.00624001]
[1756741846894,0.36630129,108810.0,108800.0,0.00624001]
[1756741847116,1.21044298,108810.0,108800.0,0.00724001]
[1756741847376,1.55044298,108810.0,108800.0,0.01124001]
[1756741847595,1.55044298,108810.0,108800.0,0.01024001]
[1756741847812,1.55144298,108810.0,108800.0,0.01324001]
[1756741848212,1.55144298,108810.0,108800.0,0.01004001]
[1756741848459,1.55044298,108810.0,108800.0,0.00704001]
[1756741848686,1.481561,108810.0,108800.0,0.00204001]
[1756741849103,1.481561,108810.0,108800.0,0.00604001]
[1756741849352,0.80023728,108810.0,108800.0,0.00524001]
[1756741849578,1.481561,108810.0,108800.0,0.00524001]
[1756741849790,1.482561,108810.0,108800.0,0.00504001]
[1756741849999,1.482561,108810.0,108800.0,0.00404001]
[1756741850224,1.482561,108810.0,108800.0,0.00504001]
[1756741850451,1.481561,108810.0,108800.0,0.00304001]
[1756741850668,1.481561,108810.0,108800.0,0.00404001]
[1756741851213,1.57646699,108810.0,108800.0,0.00200001]
[1756741851909,0.89514327,108810.0,108800.0,0.00200001]
[1756741852134,1.54798233,108810.0,108800.0,0.00404001]
[1756741852359,1.57347211,108810.0,108800.0,0.00404001]
[1756741852592,1.57439211,108810.0,108800.0,0.00404001]
[1756741852852,1.41647211,108810.0,108800.0,0.00404001]
[1756741853090,1.57245211,108810.0,108800.0,0.00724001]
[1756741853535,1.29353563,108810.0,108800.0,0.00724001]
[1756741853769,1.48033226,108810.0,108800.0,0.00200001]
[1756741854440,1.48401726,108810.0,108800.0,0.00200001]
[1756741854686,1.48401726,108810.0,108800.0,0.00085538]
[1756741854875,0.80269354,108810.0,108800.0,0.00085538]
[1756741855105,1.52362828,108810.0,108800.0,0.0014214]
[1756741855317,1.52362828,108810.0,108800.0,0.001]
[1756741855751,1.38738078,108810.0,108800.0,0.001]
[1756741857340,1.46814998,108810.0,108800.0,0.00624]
[1756741857579,1.31026998,108810.0,108800.0,0.00624]
[1756741857812,0.78682626,108810.0,108800.0,0.00624]
[1756741858047,1.46814998,108810.0,108800.0,0.00624]
[1756741858519,0.19429094,108810.0,108800.0,0.00624]
[1756741858747,0.34733163,108810.0,108800.0,0.00624]
[1756741859013,0.18949163,108810.0,108800.0,0.00624]
[1756741859254,0.68799349,108810.0,108800.0,0.00624]
[1756741860186,0.53015349,108810.0,108800.0,0.00624]
[1756741860401,0.68799349,108810.0,108800.0,0.19006352]
[1756741860870,0.68799349,108810.0,108800.0,0.00624]
[1756741861361,0.53015349,108810.0,108800.0,0.18991891]
[1756741861584,0.68803349,108810.0,108800.0,0.18991891]
[1756741861828,0.005685,108810.0,108800.0,0.18991891]
[1756741862055,0.163565,108810.0,108800.0,0.18991891]
[1756741862285,0.163525,108810.0,108800.0,0.18991891]
[1756741862776,0.005685,108810.0,108800.0,0.64343558]
[1756741862988,0.15884,108810.0,108800.0,0.64343558]
[1756741863417,0.15784,108810.0,108800.0,0.64458019]
[1756741863624,0.15784,108810.0,108800.0,0.64258019]
[1756741863873,0.15784,108810.0,108800.0,0.30191833]
[1756741864091,0.15884,108810.0,108800.0,0.28797951]
[1756741865011,0.15884,108810.0,108800.0,0.28597951]
[1756741865246,0.34164663,108810.0,108800.0,0.10215599]
[1756741865469,0.34264663,108810.0,108800.0,0.19806352]
[1756741865693,0.70887425,108810.0,108800.0,0.19806352]
[1756741866131,0.15884,108810.0,108800.0,0.19806352]
[1756741866792,0.001,108810.0,108800.0,0.65158019]
[1756741867009,0.15884,108810.0,108800.0,0.65158019]
[1756741867225,0.15884,108810.0,108800.0,0.65143578]
[1756741867448,0.001,108810.0,108800.0,0.80927578]
[1756741868567,0.001,108810.0,108800.0,0.83689778]
[1756741868789,0.001,108810.0,108800.0,1.17689778]
[1756741869437,0.001,108810.0,108800.0,1.17660886]
[1756741870091,0.001,108810.0,108800.0,1.19289483]
[1756741870309,0.001,108810.0,108800.0,1.03505483]
[1756741870531,0.001,108810.0,108800.0,1.19289483]
[1756741871155,0.001,108810.0,108800.0,0.69439297]
[1756741871382,0.001,108810.0,108800.0,1.14890686]
[1756741873156,0.001,108810.0,108800.0,1.16583803]
[1756741875480,0.001,108810.0,108800.0,1.19345803]
[1756741878045,0.001,108810.0,108800.0,1.03569803]
[1756741878251,0.001,108810.0,108800.0,1.19333803]
[1756741879655,0.001,108810.0,108800.0,1.19325803]
[1756741880235,0.18480663,108810.0,108800.0,1.03569803]
[1756741880436,0.18683663,108810.0,108800.0,0.10091599]
[1756741880876,0.18988663,108810.0,108800.0,0.10091599]
[1756741881088,0.18683663,108810.0,108800.0,0.28473951]
[1756741881299,0.18683663,108810.0,108800.0,0.10091599]
[1756741881500,0.18683663,108810.0,108800.0,0.28680951]
[1756741881703,0.18683663,108810.0,108800.0,0.10298599]
[1756741881906,0.18988663,108810.0,108800.0,0.10091599]
[1756741884403,0.18988663,108810.0,108800.0,0.009]
[1756741884612,0.55564613,108810.0,108800.0,0.009]
[1756741884821,0.53054849,108810.0,108800.0,0.009]
[1756741885531,0.68810849,108810.0,108800.0,0.009]
[1756741888323,0.34744663,108810.0,108800.0,0.009]
[1756741888531,0.68810849,108810.0,108800.0,0.009]
[1756741889859,0.68489849,108810.0,108800.0,0.01107]
[1756741890071,0.68489849,108810.0,108800.0,0.00848]
[1756741890072,0.34423663,108810.0,108800.0,0.00848]
[1756741890323,0.34728663,108810.0,108800.0,0.00848]
[1756741890550,0.68794849,108810.0,108800.0,0.00848]
[1756741891680,0.34728663,108810.0,108800.0,0.00848]
[1756741891967,0.34427663,108810.0,108800.0,0.01284779]
[1756741892220,0.34427663,108810.0,108800.0,0.01055]
[1756741892435,0.34427663,108810.0,108800.0,0.00848]
[1756741892653,0.68493849,108810.0,108800.0,0.00848]
[1756741892864,0.68798849,108810.0,108800.0,0.00848]
[1756741898663,0.71308613,108810.0,108800.0,0.00848]
[1756741900047,0.34447663,108810.0,108800.0,0.0105]
[1756741900275,0.34236663,108810.0,108800.0,0.19748352]
[1756741900942,0.001,108810.0,108800.0,0.19748352]
[1756741901161,0.34439663,108810.0,108800.0,0.0105]
[1756741901722,0.34439663,108810.0,108800.0,0.01279779]
[1756741902330,0.34439663,108810.0,108800.0,0.19662131]
[1756741902540,0.34439663,108810.0,108800.0,0.0105]
[1756741904170,0.68505849,108810.0,108800.0,0.00848]
[1756741904382,0.68827849,108810.0,108800.0,0.00848]
[1756741907558,0.68477849,108810.0,108800.0,0.19432352]
[1756741907935,0.68477849,108810.0,108800.0,0.0105]
[1756741908114,0.68477849,108810.0,108800.0,0.00848]
[1756741908316,0.68799849,108810.0,108800.0,0.00848]
[1756741909137,0.34733663,108810.0,108800.0,0.00848]
[1756741909555,0.68799849,108810.0,108800.0,0.00848]
[1756741911177,0.70987613,108810.0,108800.0,0.19432352]
[1756741911380,0.68477849,108810.0,108800.0,0.0105]
[1756741912017,0.18675663,108810.0,108800.0,0.19432352]
[1756741912215,0.18480663,108810.0,108800.0,0.19748352]
[1756741912457,0.34196663,108810.0,108800.0,0.19748352]
[1756741914883,0.15812,108810.0,108800.0,0.19748352]
[1756741917259,0.158,108810.0,108800.0,0.19748352]
[1756741917550,0.34375663,108810.0,108800.0,0.19748352]
[1756741920070,0.15995,108810.0,108800.0,0.19748352]
[1756741920271,0.001,108810.0,108800.0,0.31033833]
[1756741922699,0.18675663,108810.0,108800.0,0.00848]
[1756741922897,0.53063849,108810.0,108800.0,0.00848]
[1756741923541,0.55573613,108810.0,108800.0,0.00848]
[1756741924418,0.55573613,108810.0,108800.0,0.19230352]
[1756741924598,0.55573613,108810.0,108800.0,0.00848]
[1756741925123,0.21185427,108810.0,108800.0,0.19735352]
[1756741925340,0.15975,108810.0,108800.0,0.19735352]
[1756741925545,0.00295,108810.0,108800.0,0.19735352]
[1756741925748,0.1578,108810.0,108800.0,0.19735352]
[1756741926706,0.34160663,108810.0,108800.0,0.19735352]
[1756741927114,0.1578,108810.0,108800.0,0.19735352]
[1756741927337,0.34160663,108810.0,108800.0,0.19735352]
[1756741927679,0.68752849,108810.0,108800.0,0.00848]
[1756741928320,0.34686663,108810.0,108800.0,0.00848]
[1756741928725,0.19006663,108810.0,108800.0,0.00848]
[1756741928966,0.37188427,108810.0,108800.0,0.00848]
[1756741930102,0.71254613,108810.0,108800.0,0.19230352]
[1756741930313,0.71254613,108810.0,108800.0,0.00848]
[1756741930743,1.14168668,108810.0,108800.0,0.00848]
[1756741931367,0.80102482,108810.0,108800.0,0.00848]
[1756741931595,0.82865482,108810.0,108800.0,0.00848]
[1756741934770,0.48799296,108810.0,108800.0,0.00848]
[1756741934977,0.82865482,108810.0,108800.0,0.00848]
[1756741938344,0.55517849,108810.0,108800.0,0.19230352]
[1756741938688,0.36951663,108810.0,108800.0,0.19735352]
[1756741939071,0.02863,108810.0,108800.0,0.19735352]
[1756741939277,0.15808,108810.0,108800.0,0.19735352]
[1756741939472,0.15804,108810.0,108800.0,0.19735352]
[1756741940283,0.34184663,108810.0,108800.0,0.19735352]
[1756741940702,0.34392663,108810.0,108800.0,0.0106]
[1756741940911,0.68776849,108810.0,108800.0,0.00848]
[1756741941132,0.34710663,108810.0,108800.0,0.00848]
[1756741941375,0.71539649,108810.0,108800.0,0.00848]
[1756741941616,0.74283356,108810.0,108800.0,0.00848]
[1756741941853,1.17541141,108810.0,108800.0,0.00848]
[1756741942081,1.17541141,108810.0,108770.0,0.02595238]
[1756741942082,0.18385732,108780.0,108770.0,0.02595238]
[1756741942334,0.34309732,108780.0,108770.0,0.20982661]
[1756741942573,0.34309732,108780.0,108770.0,0.18892423]
[1756741942574,0.15924,108780.0,108770.0,0.18892423]
[1756741942802,0.34309732,108780.0,108770.0,0.18892423]
[1756741943022,0.34517732,108780.0,108770.0,0.00505]
[1756741943250,0.34309732,108780.0,108770.0,0.00734842]
[1756741943697,0.34309732,108780.0,108770.0,0.19122265]
[1756741943934,0.34309732,108780.0,108770.0,0.18892423]
[1756741944187,0.358847,108780.0,108770.0,0.00212]
[1756741944412,0.18387423,108770.0,108760.0,0.20901087]
[1756741944630,0.356767,108780.0,108760.0,0.64370872]
[1756741944841,0.34309732,108780.0,108770.0,0.00722842]
[1756741945046,0.34309732,108780.0,108770.0,0.00734842]
[1756741945275,0.18387423,108770.0,108760.0,0.11410573]
[1756741945540,0.34309732,108780.0,108770.0,0.001]
[1756741945541,0.34709732,108780.0,108770.0,0.001]
[1756741945766,0.18485732,108780.0,108770.0,0.18829265]
[1756741945980,0.34857732,108780.0,108770.0,0.20986305]
[1756741946206,0.34957732,108780.0,108770.0,0.21086305]
[1756741946429,0.35057732,108780.0,108770.0,0.21086305]
[1756741946668,0.71029174,108780.0,108770.0,0.001]
[1756741946926,0.36544988,108780.0,108770.0,0.00312]
[1756741947606,0.70929174,108780.0,108770.0,0.001]
[1756741947831,0.36862988,108780.0,108770.0,0.001]
[1756741948100,0.71029174,108780.0,108770.0,0.002]
[1756741948326,0.46100719,108780.0,108770.0,0.002]
[1756741948544,0.80166905,108780.0,108770.0,0.002]
[1756741948994,0.80100719,108780.0,108770.0,0.002]
[1756741949220,1.01435013,108780.0,108770.0,0.002]
[1756741949467,1.74567385,108780.0,108770.0,0.002]
[1756741949911,1.00078688,108780.0,108770.0,0.002]
[1756741950124,1.6821506,108780.0,108770.0,0.002]
[1756741951020,1.6821506,108780.0,108770.0,0.001]
[1756741951021,1.6811506,108780.0,108770.0,0.001]
[1756741951242,0.52387423,108770.0,108760.0,0.00125092]
[1756741951482,0.61579022,108770.0,108760.0,0.00125092]
[1756741951707,0.96171208,108770.0,108760.0,0.00125092]
[1756741951940,1.37305394,108770.0,108760.0,0.00125092]
[1756741952169,1.03239208,108770.0,108760.0,0.00125092]
[1756741952388,1.39538322,108770.0,108760.0,0.00225092]
[1756741952655,1.14663735,108770.0,108760.0,0.00425092]
[1756741952872,1.14563735,108770.0,108760.0,0.00125092]
[1756741953140,1.13590442,108770.0,108760.0,0.00125092]
[1756741953383,0.8121902,108770.0,108760.0,0.00125092]
[1756741953633,1.02265915,108770.0,108760.0,0.00125092]
[1756741953860,0.85443729,108770.0,108760.0,0.00125092]
[1756741954081,0.85443729,108770.0,108760.0,0.00337092]
[1756741954082,0.43111423,108770.0,108760.0,0.00337092]
[1756741954297,0.43111423,108770.0,108760.0,0.21213087]
[1756741954298,0.006,108770.0,108760.0,0.21213087]
[1756741954531,0.004,108770.0,108760.0,0.21213087]
[1756741954762,0.00480603,108780.0,108770.0,0.20281305]
[1756741954989,0.5427232,108780.0,108770.0,0.01793882]
[1756741955219,0.6343025,108780.0,108760.0,0.18514177]
[1756741955446,0.17392,108780.0,108770.0,0.18887423]
[1756741955728,0.35777732,108780.0,108770.0,0.005]